Cogmind - Beta 13 @@@ ROGUE MODE // 2024.04.10 @ 18:31:14 Player: SonVince Result: Destroyed by 8R-AWN with 8R-AWN's Boregun Performance ------------- Evolutions (1) 500 Regions Visited (5) 1000 Robots Destroyed (37) 185 Value Destroyed (893) 893 Prototype IDs (25) 500 Alien Tech Used (0) 0 Bonus (443) 443 TOTAL SCORE: 3521 Bonus ------- Follower Combat Kills 184 Aligned with FarCom 300 Friendly Fire -41 Cogmind --------- Core Integrity 0/400 Matter 182/300 Energy 100/100 System Corruption 11% Temperature Cool (0) Movement Core (1350) Ox26 Location -9/Exiles Parts ------- > --- POWER (1) -------- (None) > --- PROPULSION (4) --- (None) > --- UTILITY (2) ------ Huge Storage Unit > --- WEAPON (2) ------- (None) > --- INVENTORY (25) --- Aluminum Leg Aluminum Leg Aluminum Leg Improved Aluminum Leg Army-in-a-Box (30/30) Improved Medium Laser Improved Medium Laser Beamcaster Advanced Beam Cannon Advanced Beam Cannon Advanced Beam Cannon Light Cannon Light Cannon Light Cannon Rocket Launcher Rocket Launcher Mining Claw Peak State ------------ > --- POWER ------------ Ion Engine > --- PROPULSION ------- Light Treads Light Treads Light Treads Light Treads > --- UTILITY ---------- Huge Storage Unit Visual Processing Unit > --- WEAPON ----------- Improved Medium Laser Improved Medium Laser > --- INVENTORY -------- Ion Engine Aluminum Leg Aluminum Leg Aluminum Leg Improved Aluminum Leg Army-in-a-Box Improved Medium Laser Beamcaster Advanced Beam Cannon Advanced Beam Cannon Advanced Beam Cannon Advanced Beam Cannon Autogun Light Cannon Light Cannon Light Cannon Light Cannon Rocket Launcher Rocket Launcher Mining Claw [Rating: 23] Favorites ----------- Power Light Nuclear Core Engine Ion Engine Power Core Light Nuclear Core Propulsion Light Treads Treads Light Treads Leg Aluminum Leg Utility Huge Storage Unit Device Improved Heat Sink Storage Huge Storage Unit Processor Visual Processing Unit Weapon Light Cannon Energy Gun Improved Medium Laser Energy Cannon Advanced Beam Cannon Ballistic Gun Assault Rifle Ballistic Cannon Light Cannon Launcher Grenade Launcher Build | -11 -10 -10 -9 -9 -9 ------- Run | Yrd Mat Min Mat Min Exi Slots Evolved 2 | . . . 2 . . Power . | . . . . . . Propulsion 2 | . . . 2 . . Utility . | . . . . . . Weapon . | . . . . . . Parts Attached 36 | 7 11 . 10 2 6 Power 5 | 1 2 . 1 . 1 Engine 4 | 1 1 . 1 . 1 Core 1 | . 1 . . . . Reactor . | . . . . . . Propulsion 8 | 3 3 . 2 . . Treads 5 | 1 2 . 2 . . Leg 3 | 2 1 . . . . Wheel . | . . . . . . Hover . | . . . . . . Flight . | . . . . . . Utility 6 | 1 2 . 3 . . Device 2 | . 1 . 1 . . Storage 2 | 1 1 . . . . Processor 2 | . . . 2 . . Hackware . | . . . . . . Protection . | . . . . . . Artifact . | . . . . . . Weapon 17 | 2 4 . 4 2 5 Energy Gun 6 | 1 1 . 2 1 1 Energy Cannon 3 | . . . 2 . 1 Ballistic Gun 2 | 1 . . . . 1 Ballistic Cannon 3 | . 2 . . . 1 Launcher 3 | . 1 . . 1 1 Special Weapon . | . . . . . . Impact Weapon . | . . . . . . Slashing Weapon . | . . . . . . Piercing Weapon . | . . . . . . Special Melee Weapon . | . . . . . . Unidentified Prototypes 2 | . . . 2 . . Parts Lost 16 | . 5 . 1 . 10 Power 4 | . 1 . 1 . 2 Propulsion 5 | . 1 . . . 4 Utility 1 | . . . . . 1 Weapon 6 | . 3 . . . 3 Highest Loss Streak 10 | . 3 . 1 . 10 To Critical Strikes 7 | . . . . . 7 Average Slot Usage (%) 97 | . 95 100 98 100 88 Engine 4 | . 3 . 5 11 9 Core 7 | . 8 14 4 . . Treads 31 | . 19 28 43 44 37 Leg 2 | . 7 . . . . Device 8 | . 11 14 6 . . Storage 13 | . 15 14 11 11 11 Processor 3 | . . . 4 11 9 Energy Gun 7 | . 8 . 1 20 18 Energy Cannon 1 | . . . 8 . . Ballistic Cannon 15 | . 17 28 11 . . Naked Turns . | . . . . . . Heaviest Build 94 | 14 94 92 94 91 93 Greatest Support 80 | 20 40 40 80 80 80 Greatest Overweight (x) 26 | . 8 2 1 1 26 Average Overweight (x) 1 | . 2 2 1 1 1 Largest Inventory Capacity 25 | 8 25 25 25 25 25 Average Capacity 24 | 6 24 25 25 25 25 Most Carried 25 | 5 15 17 25 25 25 Average Carried 17 | 3 11 15 22 24 24 Final Capacity 25 | 8 25 25 25 25 25 Final Carried 25 | 3 15 17 25 25 22 Class Distribution -------------------- 94% | Mutant 5% | Scavenger-Mutant Dominant Class ---------------- Mutant | -10/Materials Mutant | -10/Mines Mutant | -9/Materials Mutant | -9/Mines Mutant | -9/Exiles Resources | -11 -10 -10 -9 -9 -9 ----------- Run | Yrd Mat Min Mat Min Exi Matter Collected 934 | 186 325 80 211 130 2 Remotely . | . . . . . . Salvage Created 1230 | . 642 90 386 94 18 Parts 73 | . 42 7 20 4 . Haulers Intercepted 4 | . 2 . 2 . . Recyclers Shooed . | . . . . . . Parts Field Recycled . | . . . . . . Retrieved Matter . | . . . . . . Parts Self-Destructed . | . . . . . . Prevented . | . . . . . . Kills | -11 -10 -10 -9 -9 -9 ------- Run | Yrd Mat Min Mat Min Exi Combat Hostiles Destroyed 29 | . 10 4 6 2 7 Guns 7 | . 3 . . 2 2 Cannons 15 | . 4 4 6 . 1 AOE 7 | . 3 . . . 4 Classes Destroyed 10 | . 6 1 2 1 . Worker 2 | . 1 . 1 . . Builder 3 | . 2 1 . . . Hauler 4 | . 2 . 2 . . Recycler 3 | . 2 . . 1 . Watcher 4 | . 3 . 1 . . Swarmer 2 | . . 2 . . . Grunt 15 | . 10 2 2 1 . Brawler 1 | . . . 1 . . Sentry 3 | . . . 3 . . Assembled 8 | . . . . 1 7 Best Kill Streak 7 | . 5 2 2 1 7 Combat Bots Only 7 | . 3 2 2 1 7 Max Kills in Single Turn 4 | . 3 1 1 1 4 Gunslinging . | . . . . . . Exploded 4 | . 2 . . . 4 Melee . | . . . . . . Uniques/NPCs Destroyed . | . . . . . . Combat | -11 -10 -10 -9 -9 -9 -------- Run | Yrd Mat Min Mat Min Exi Hostile Shots Fired 226 | . 76 27 21 6 96 Missed 52 | . 18 8 6 3 17 Damage Taken 2649 | . 808 170 217 76 1378 Core 577 | . 142 26 13 . 396 Absorbed by Shields . | . . . . . . Core Remaining (%) 66 | 100 . 32 . . . Volleys Fired 116 | . 42 10 26 10 28 Largest 2 | . 2 2 2 2 2 Hottest 136 | . 90 70 136 112 112 Shots Fired 217 | . 78 20 52 21 46 Gun 99 | . 54 . . 19 26 Cannon 112 | . 22 20 52 . 18 Launcher 6 | . 2 . . 2 2 Special . | . . . . . . Kinetic 98 | . 38 20 27 . 13 Thermal 106 | . 31 . 25 19 31 Explosive 6 | . 2 . . 2 2 Electromagnetic 7 | . 7 . . . . Robot Hit Streak 16 | . 16 4 9 2 13 Robot Miss Streak 5 | . 3 2 2 5 3 Penetration Max . | . . . . . . Secondary Targets 1 | . 1 . . . . Max Gunslinging Chain 1 | . 1 . . . . Shots Hit Robots 131 | . 53 11 35 5 27 Core Hits 66 | . 33 5 11 4 13 Critical Kills . | . . . . . . Critical Parts Destroyed . | . . . . . . Critical Strikes 9 | . 5 1 1 2 . Burn 6 | . 4 . . 2 . Blast 3 | . 1 1 1 . . Melee Attacks . | . . . . . . Impact . | . . . . . . Slashing . | . . . . . . Piercing . | . . . . . . Sneak Attacks . | . . . . . . Combat Hostiles . | . . . . . . Follow-up Attacks . | . . . . . . Damage Inflicted 2582 | . 1026 228 655 141 532 Guns 829 | . 505 . . 85 239 Cannons 1077 | . 195 191 655 . 36 Explosions 612 | . 308 . . 47 257 Melee . | . . . . . . Ramming 64 | . 18 37 . 9 . Kinetic 941 | . 348 191 303 . 99 Thermal 953 | . 340 . 352 85 176 Explosive 536 | . 232 . . 47 257 Electromagnetic 88 | . 88 . . . . Impact . | . . . . . . Slashing . | . . . . . . Piercing . | . . . . . . Highest Corruption 11 | . . . 5 5 11 Average Corruption 5 | . . . 5 5 6 Corruption Purged . | . . . . . . Corruption Blocked . | . . . . . . Effects 62 | . . . 17 26 19 Message Errors 14 | . . . 3 5 6 Matter Fused 17 | . . . 3 9 5 Heat Flow Errors 11 | . . . 5 3 3 Energy Discharges 2 | . . . 2 . . Parts Rejected 1 | . . . . . 1 Data Loss (minor) 6 | . . . 1 4 1 Data Loss (major) 1 | . . . . 1 . Misfires 5 | . . . 1 2 2 Alerts 2 | . . . 1 1 . Weapon Failures 3 | . . . 1 1 1 Overload Shots . | . . . . . . Overflow Damage 15 | . . 15 . . . Projectiles 15 | . . 15 . . . Explosions . | . . . . . . Melee . | . . . . . . Knockbacks 3 | . 2 1 . . . Impact . | . . . . . . Kinetic 3 | . 2 1 . . . Secondary . | . . . . . . Self-Inflicted Damage 136 | . 54 . . 38 44 Shots 4 | . 2 . . 1 1 Rammed 7 | . 1 5 . 1 . Targets Rammed 8 | . 1 5 . 2 . Kicked . | . . . . . . Crushed 1 | . . . . 1 . Highest Temperature 463 | . 150 . 262 211 463 Average Temperature 93 | . 54 . 61 60 160 Received Heat Transfer 824 | . 423 21 60 80 240 Effects 1 | . . . . . 1 Energy Bleed 1 | . . . . . 1 Siege Activations . | . . . . . . Robots Corrupted . | . . . . . . Combat Hostiles . | . . . . . . Parts Fried . | . . . . . . Impact Corruptions . | . . . . . . Robots Melted . | . . . . . . Combat Hostiles . | . . . . . . Parts Melted 2 | . 2 . . . . Heat Transferred 2657 | . 1273 . 629 333 422 Parts Sabotaged . | . . . . . . Parts Stolen . | . . . . . . Parts Stripped . | . . . . . . Power Chain Reactions 2 | . 2 . . . . Alert | -11 -10 -10 -9 -9 -9 ------- Run | Yrd Mat Min Mat Min Exi Peak Influence 211 | . 211 124 164 56 . Initial 1 | . . . 1 . . Average 30 | . 41 15 61 6 . Maximum Alert Level 1 | . 1 . . . . Low Security (%) 98 | 100 96 100 100 100 . Level 1 1 | . 3 . . . . Level 2 . | . . . . . . Level 3 . | . . . . . . Level 4 . | . . . . . . Level 5 . | . . . . . . High Security . | . . . . . . Max Security . | . . . . . . Squads Dispatched 3 | . 3 . . . . Investigation . | . . . . . . Extermination . | . . . . . . Reinforcement 3 | . 3 . . . . Assault . | . . . . . . Garrison . | . . . . . . Intercept . | . . . . . . Searches Triggered . | . . . . . . Construction Impeded . | . . . . . . Haulers Reinforced . | . . . . . . Active Scanning Responses . | . . . . . . Cargo Convoy Interrupts . | . . . . . . Stealth | -11 -10 -10 -9 -9 -9 --------- Run | Yrd Mat Min Mat Min Exi Distress Signals 4 | . 1 . 2 1 . Communications Jammed . | . . . . . . Distress Signals . | . . . . . . Times Spotted 60 | . 23 10 11 7 9 Peak Tracking Total 11 | . 7 3 4 2 11 Tactical Retreats 3 | . 1 . . 1 1 Traps | -11 -10 -10 -9 -9 -9 ------- Run | Yrd Mat Min Mat Min Exi Traps Triggered . | . . . . . . Indirectly . | . . . . . . Trap Hack Attempts . | . . . . . . Triggered . | . . . . . . Disarmed . | . . . . . . Reprogrammed . | . . . . . . Reused . | . . . . . . Traps Extracted . | . . . . . . Installed . | . . . . . . Triggered . | . . . . . . Machines | -11 -10 -10 -9 -9 -9 ---------- Run | Yrd Mat Min Mat Min Exi Machines Disabled 6 | . 2 . . . 4 Max in Single Turn 2 | . 2 . . . 1 Machines Repaired . | . . . . . . Machines Dismantled . | . . . . . . Machines Sabotaged . | . . . . . . Overloaded Fab Kills . | . . . . . . Hacking | -11 -10 -10 -9 -9 -9 --------- Run | Yrd Mat Min Mat Min Exi Machines Accessed 4 | . 1 . 1 . 2 Terminals . | . . . . . . Fabricators . | . . . . . . Repair Stations . | . . . . . . Recycling Units 1 | . 1 . . . . Scanalyzers 1 | . . . 1 . . Garrison Access . | . . . . . . Total Hacks 11 | . 1 . 2 . 8 Successful 11 | . 1 . 2 . 8 Failed . | . . . . . . Catastrophic . | . . . . . . Database Lockouts . | . . . . . . Manual 1 | . . . . . 1 Terminals . | . . . . . . Fabricators . | . . . . . . Repair Stations . | . . . . . . Recycling Units 1 | . 1 . . . . Scanalyzers 2 | . . . 2 . . Garrison Access . | . . . . . . Terminal Hacks 8 | . . . . . 8 Record 7 | . . . . . 7 Derelict Proto ID Bank 1 | . . . . . 1 Fabricator Hacks . | . . . . . . Repair Station Hacks . | . . . . . . Recycling Unit Hacks 1 | . 1 . . . . Report Inventory 1 | . 1 . . . . Scanalyzer 2 | . . . 2 . . Insert Component 1 | . . . 1 . . Analyze 1 | . . . 1 . . Garrison Access Hacks . | . . . . . . Unauthorized Hacks . | . . . . . . Terminals . | . . . . . . Fabricators . | . . . . . . Repair Stations . | . . . . . . Recycling Units . | . . . . . . Scanalyzers . | . . . . . . Garrison Access . | . . . . . . Data Cores Recovered . | . . . . . . Used . | . . . . . . Hacking Detections 2 | . 1 . 1 . . Full Trace Events . | . . . . . . Feedback Events . | . . . . . . Feedback Blocked . | . . . . . . Robot Schematics Acquired . | . . . . . . Robots Built . | . . . . . . Authchips . | . . . . . . Time . | . . . . . . Total Robot Build Rating . | . . . . . . Part Schematics Acquired 1 | . . . 1 . . Parts Built . | . . . . . . Authchips . | . . . . . . Time . | . . . . . . Total Part Build Rating . | . . . . . . Parts Repaired . | . . . . . . Time . | . . . . . . Parts Recycled . | . . . . . . Recycled Matter . | . . . . . . Retrieved Matter . | . . . . . . Retrieved Components . | . . . . . . Parts Scanalyzed 1 | . . . 1 . . Part Schematics Acquired 1 | . . . 1 . . Parts Damaged . | . . . . . . Bothacking | -11 -10 -10 -9 -9 -9 ------------ Run | Yrd Mat Min Mat Min Exi Used RIF Installer . | . . . . . . Robots Hacked . | . . . . . . Non-combat . | . . . . . . Combat . | . . . . . . Robot Hacks Applied . | . . . . . . Relay Couplers Released . | . . . . . . Fabnet Peak Effective % . | . . . . . . Robots Rewired . | . . . . . . Allies Hacked . | . . . . . . Hacks Repelled . | . . . . . . Allies | -11 -10 -10 -9 -9 -9 -------- Run | Yrd Mat Min Mat Min Exi Total Allies 6 | . . 4 . 2 . Largest Group 3 | . . 3 3 2 1 Highest-Rated Group 40 | . . 40 40 39 31 Highest-Rated Ally 31 | . . 31 16 31 31 Total Orders 2 | . . . 2 . . STAY 2 | . . . 2 . . Ally Attacks 53 | . . 14 12 27 . Total Damage 663 | . . 234 157 272 . Kills 17 | . . 5 7 5 . Allies Corrupted . | . . . . . . Allies Melted . | . . . . . . Intel | -11 -10 -10 -9 -9 -9 ------- Run | Yrd Mat Min Mat Min Exi Robot Analysis Total . | . . . . . . Derelict Logs Recovered 1 | . . 1 . . . Drone Launches . | . . . . . . Drone Recoveries . | . . . . . . Exploration | -11 -10 -10 -9 -9 -9 ------------- Run | Yrd Mat Min Mat Min Exi Turns Passed 7598 | 52 2173 2224 1264 1204 681 Spaces Moved 2427 | 36 592 661 423 483 232 Core 14 | 13 . . . . 1 Treads 2234 | . 436 661 423 483 231 Legs 179 | 23 156 . . . . Wheels . | . . . . . . Hover . | . . . . . . Flight . | . . . . . . Fastest Speed 50 | 50 120 320 240 240 240 Average Speed 279 | 94 320 320 240 240 247 Slowest Speed 1350 | 120 680 320 240 240 1350 Overloaded Moves . | . . . . . . Propulsion Burnouts . | . . . . . . Robots Hopped . | . . . . . . Cave-ins Triggered . | . . . . . . Exploration Rate (%) 58 | 4 93 98 28 85 44 Regions Visited 5 Branch Regions 3 Pre-discovered Areas 2 | . . 1 . 1 . Known Exits Taken . | . . . . . . Unknown Exits Taken 5 | 1 1 1 1 1 . Scrap Searched 3 | . . 1 . 2 . Spaces Dug . | . . . . . . Terrain Destroyed 29 | . 15 . . 13 1 Melee . | . . . . . . Projectile . | . . . . . . AOE 29 | . 15 . . 13 1 Terrain Rammed . | . . . . . . Walls Destroyed . | . . . . . . Machines Disabled . | . . . . . . Actions | -11 -10 -10 -9 -9 -9 --------- Run | Yrd Mat Min Mat Min Exi Total 3015 | 52 789 741 628 507 298 Wait 338 | 3 124 64 119 3 25 Move 2422 | 35 591 660 422 482 232 Hop . | . . . . . . Pick Up 63 | 6 19 2 31 4 1 Fast Attach 4 | 4 . . . . . Attach 17 | 3 6 . 5 . 3 Detach 1 | . . . 1 . . Swap 15 | . 5 . 5 2 3 Drop 31 | 1 1 . 19 4 6 Fire 116 | . 42 10 26 10 28 Melee . | . . . . . . Ram . | . . . . . . Kick . | . . . . . . Crush 8 | . 1 5 . 2 . Escape Stasis . | . . . . . . Rewire . | . . . . . . Trap . | . . . . . . Miscellaneous . | . . . . . . Route ------- -11/Scrapyard -10/Materials (discovered 4 exits: *Mat x3 / [*Min]) -10/Mines (discovered 2 exits: *Mat x2) -9/Materials (discovered 2 exits: Mat / [*Min]) -9/Mines (discovered 3 exits: *Mat x2 / *Exi) -9/Exiles History --------- Turn | Location | Event 7 | -11/Scrapyard | Discovered new exit (range 15) 53 | -11/Scrapyard | Entered Materials 305 | -10/Materials | Build established: Mutant 353 | -10/Materials | Lost 3 parts (1p1n1w) 467 | -10/Materials | Discovered new exit (range 16) 883 | -10/Materials | Core integrity fell below 50% 921 | -10/Materials | Discovered new exit (range 16) 1382 | -10/Materials | Discovered new exit (range 13) 2201 | -10/Materials | Discovered new exit (range 8) 2226 | -10/Materials | Entered Mines 2229 | -10/Mines | Met a Derelict bent on vengeance 2242 | -10/Mines | Escorted by a lone wolf Derelict 2262 | -10/Mines | Learned location of Storage (-8) 3027 | -10/Mines | Discovered new exit (range 7) 3072 | -10/Mines | Discovered new exit (range 12) 3531 | -10/Mines | Learned location of 1 exit from Materials 4255 | -10/Mines | Assisted by bots powering up and referring to "LRC-V3" 4450 | -10/Mines | Entered Materials 4450 | -9/Materials | Accompanied by 3 allies 4450 | -9/Materials | Evolved 2 slots: Propulsion x2 4451 | -9/Materials | Identified exit to Materials 4527 | -9/Materials | Lost 3 allies 4857 | -9/Materials | Build established: Scavenger-Mutant 5295 | -9/Materials | Build established: Mutant 5421 | -9/Materials | Discovered new exit (range 16) 5714 | -9/Materials | Entered Mines 5989 | -9/Mines | Assembled infested the area 6370 | -9/Mines | Discovered exit to Materials (range 9) 6555 | -9/Mines | Discovered exit to Materials (range 12) 6730 | -9/Mines | Received a Rocket Launcher from a helpful Derelict 6816 | -9/Mines | Deemed a non-threat by the Exiles lab entrance 6818 | -9/Mines | Discovered new exit (range 5) 6918 | -9/Mines | Entered Exiles 6918 | -9/Exiles | Accompanied by 1 ally 6948 | -9/Exiles | Led the pair of lost Derelicts to a safe place 6978 | -9/Exiles | Met 8R-AWN 7017 | -9/Exiles | Met EX-HEX 7091 | -9/Exiles | Met EX-BIN 7120 | -9/Exiles | Aligned with FarCom system 7122 | -9/Exiles | Given EX-Vault access code 7178 | -9/Exiles | Opened EX-Vault 7209 | -9/Exiles | Found Prototype Device 7266 | -9/Exiles | Warned to stay clear of 0b10 Research branches 7400 | -9/Exiles | Identified Army-in-a-Box 7454 | -9/Exiles | Attacked by the Exiles 7482 | -9/Exiles | System corruption reached 10% 7516 | -9/Exiles | Destroyed 7 combat bots 7553 | -9/Exiles | Core integrity fell below 50% 7579 | -9/Exiles | Lost 10 parts (2p4n1u3w) 7587 | -9/Exiles | Core integrity fell below 20% 7599 | -9/Exiles | Destroyed by 8R-AWN with 8R-AWN's Boregun Last Messages --------------- Penetrated by HV Slug. HV Slug penetrates FarCom Aligner. FarCom Aligner collapses. Penetrated by HV Slug. HV Slug penetrates FarCom Aligner. Penetrated by HV Slug. HV Slug penetrates FarCom Aligner. System corrupted: Heat flow error (+136). Penetrated by HV Slug. HV Slug penetrates FarCom Aligner. Penetrated by HV Slug. HV Slug penetrates FarCom Aligner. Penetrated by HV Slug. HV Slug penetrates FarCom Aligner. Penetrated by HV Slug. HV Slug penetrates FarCom Aligner. HV Slug penetrates Wall. Penetrated by HV Slug. HV Slug penetrates Earth. Penetrated by HV Slug. Map ----- +----------------------------------------------------+ | ?????????????????## #????????????????????????? | | ??????????????????# #????????????????????????? | | ??????????????????# #########????????????????? | | ??????????????????# ##""""""#????????????????? | | ??????????????????# ## """#????????????????? | | ??????????????????# X""#????????????????? | | ??????????????????# ## """#????????????????? | | ??????????######### ##""""""#????????????????? | | ??????????#""""""## #########????????????????? | | ??????????#"""" ## #????????????????????????? | | ??????????#""X" #????????????????????????? | | ??????????#" #????????????????????????? | | ??????????#" ## #???? #??????????????????? | | ??????????#""""""## #?###;####;#?????????????? | | ??????????##"###### ###"" """ ;??????????????? | | ?????????? "?????# " #" "" #??????????????? | | ????????#"""??????# # #" """ "#??????????????? | | ????????#"""?????## #;# " "#??????????????? | | ?????????""??????#" ""#??????????????? | | ?????????????????#" """#??????????????? | | ?????????????????#" """#??????????????? | | ?????????????????# """#??????????????? | | ?????????????????#" %% """#??????????????? | | ?????????????????#" % % ""## ????????????? | | ?????????????????## """""????????????? | | ?????????????????# @] """###????????????? | | ?????????????????## %% X" """"" ????????????? | | ??????????????????# # "????????????? | | ??????????????????#" g """""""#??????????????? | | ?????????????????## ###########??????????????? | | ????????????????##"" #????????????????????????? | | ??????????????###"" #????????????????????????? | | ????????????"""""" ##???????????????????????? | | ???????????""" " ##???###########????????? | | ?????????" """ #####"""""""""##???????? | | ???????? " " " """ """"##??????? | | ?????? "" " #??????? | | ?????? " """#??????? | | ??????? " "#??????? | | ??????? " "##?????? | | ??????? ""###???? | | ???????? """""" """#???? | | ???????? ######""" "#???? | | ????????? ""#?????#####""" ##??? | | ????????? """#??????????##""" ##?# | | ?????????????????????????#"""" ### | | ?????????????????????????#"" | | ????????????????????????#"""" | | ???????????????????????"" | | ?????????????????????"" # | +----------------------------------------------------+ Best States ------------- Heat Dissipation 42 Energy Generation 14 Energy Capacity 250 Matter Stores 300 Matter Capacity 300 Sight Range 18 Terrain Scan Density 10 Evasion (%) 55 Recoil Reduction 4 Item Schematics ----------------- Hvy. Assault Rifle | -9/Materials | Scanalyzed Robot Schematics ------------------ None Fabricated ------------ Nothing Alien Tech Used ----------------- None Achievements -------------- None Challenges ------------ None Game ------ Seed VisualVisualFirepult Manual? 0 Play Time 01:05:00 Cumulative 7.9 hours Start 2024.04.07 @ 09:12:59 End 2024.04.10 @ 18:31:14 Sessions 2 Manual Loads 0 Difficulty Rogue Special Mode None Game No. 17 Rogue 17 Adventurer 0 Explorer 0 Win Type - Total 0 Types 0/0/0/0/0/0/0/0/0 Lore% 6 Gallery% 12 Achievement% 13 Wizard Run 0 Options --------- Layout 0 ASCII 0 Keyboard 0 Movement Mouse Keybinds 0 Fullscreen 1 Font 24/Smallcaps Map View 56x25 Zoom Use 96% Tactical HUD 0 Map Filters NONE Filters NONE Steam 1 RUN: 841edee8-d9b5-4e4f-a86c-cf9f5ea6c56e